Cogmind - Beta 16 @@@ ROGUE MODE // 2025.12.01 @ 15:54:32 Player: Maxfecteau Result: Destroyed by MD-UZM(R) with Subdweller Laser Performance ------------- Evolutions (0) 0 Regions Visited (2) 400 Robots Destroyed (31) 155 Value Destroyed (696) 696 Prototype IDs (3) 60 Alien Tech Used (0) 0 Bonus (-17) -17 TOTAL SCORE: 1294 Bonus ------- Friendly Fire -17 Cogmind --------- Core Integrity 0/250 Matter 164/300 Energy 122/125 System Corruption 2% Temperature Cool (11) Movement Rolling (107) Ox1 Location -10/Subcaves Parts ------- > --- POWER (1) -------- Light Ion Engine > --- PROPULSION (2) --- Wheel Subdweller Monowheel > --- UTILITY (2) ------ Large Storage Unit Medium Armor Plating > --- WEAPON (2) ------- Beam Cannon Battle Rifle > --- INVENTORY (15) --- Light Treads Medium Storage Unit Large Matter Pod (150) Seismic Detector Utility Shielding Medium Armor Plating Medium Armor Plating EM Pulse Gun Assault Rifle Rocket Launcher Rocket Launcher Rocket Launcher Rocket Launcher Hammer Peak State ------------ > --- POWER ------------ Light Ion Engine > --- PROPULSION ------- Wheel Subdweller Monowheel > --- UTILITY ---------- Large Storage Unit Makeshift System Restoration Module > --- WEAPON ----------- Battle Rifle Hammer > --- INVENTORY -------- Light Treads Medium Storage Unit Large Matter Pod Utility Shielding Medium Armor Plating Medium Armor Plating Medium Armor Plating EM Pulse Gun Beam Cannon Assault Rifle Rocket Launcher Rocket Launcher Rocket Launcher Rocket Launcher [Rating: 14] Favorites ----------- Power Ion Engine Engine Ion Engine Propulsion Light Treads Treads Light Treads Wheel Wheel Utility Seismic Detector Device Seismic Detector Storage Large Storage Unit Protection Medium Armor Plating Weapon EM Pulse Gun Energy Gun EM Pulse Gun Energy Cannon Beam Cannon Ballistic Gun Assault Rifle Ballistic Cannon Light Cannon Impact Weapon Hammer Build | -11 -10 -10 ------- Run | Yrd Mat Sub Slots Evolved . | . . . Power . | . . . Propulsion . | . . . Utility . | . . . Weapon . | . . . Parts Attached 22 | 7 7 8 Power 4 | 1 1 2 Engine 4 | 1 1 2 Core . | . . . Reactor . | . . . Propulsion 5 | 2 2 1 Treads 3 | 2 1 . Leg . | . . . Wheel 2 | . 1 1 Hover . | . . . Flight . | . . . Utility 6 | 2 2 2 Device 3 | 1 1 1 Storage 2 | 1 1 . Processor . | . . . Hackware . | . . . Protection 1 | . . 1 Artifact . | . . . Weapon 7 | 2 2 3 Energy Gun 2 | 2 . . Energy Cannon 1 | . . 1 Ballistic Gun 2 | . 1 1 Ballistic Cannon 1 | . 1 . Launcher . | . . . Special Weapon . | . . . Impact Weapon 1 | . . 1 Slashing Weapon . | . . . Piercing Weapon . | . . . Special Melee Weapon . | . . . Unidentified Prototypes . | . . . Parts Lost 6 | . 3 3 Power 2 | . . 2 Propulsion 2 | . 1 1 Utility 1 | . 1 . Weapon 1 | . 1 . Highest Loss Streak 1 | . 1 1 To Critical Strikes . | . . . Average Backups 9 | 1 7 14 Power . | . . . Propulsion . | . . 1 Utility 4 | . 3 6 Weapon 4 | . 2 7 Tool/Special . | . . . Unused Backups 11 | . 3 8 Power 1 | . 1 . Propulsion . | . . . Utility 6 | . 2 4 Weapon 4 | . . 4 Tool/Special . | . . . Average Slot Usage (%) 96 | . 97 95 Engine 13 | . 14 13 Treads 18 | . 26 5 Wheel 7 | . . 18 Device 12 | . 12 13 Storage 14 | . 14 14 Energy Gun 13 | . 21 . Ballistic Gun 7 | . 4 11 Ballistic Cannon 4 | . 1 9 Impact Weapon 2 | . . 7 Peak Build Rating 14 | 7 9 14 Average Rating 7 | 5 6 9 On Entrance 5 | . 7 9 Avg Prop Armor Cover (%) 10 | . 10 11 Naked Turns . | . . . Heaviest Build 39 | 15 31 39 Greatest Support 40 | 40 40 30 Greatest Overweight (x) 3 | 1 3 3 Average Overweight (x) . | . . 2 Largest Inventory Capacity 15 | 8 15 15 Average Capacity 11 | 7 10 15 Most Carried 15 | 2 15 15 Average Carried 9 | 1 7 14 Final Capacity 15 | 8 15 15 Final Carried 15 | 2 15 14 Class Distribution -------------------- 86% | Mutant 13% | Scavenger-Mutant Dominant Class ---------------- Mutant | -10/Materials Mutant | -10/Subcaves Resources | -11 -10 -10 ----------- Run | Yrd Mat Sub Matter Collected 673 | 259 293 121 Remotely . | . . . Salvage Created 1034 | 129 824 81 Parts 68 | 13 53 2 Haulers Intercepted 2 | . 2 . Recyclers Shooed . | . . . Parts Field Recycled . | . . . Retrieved Matter . | . . . Parts Self-Destructed 10 | . . 10 Prevented . | . . . Parts Restored . | . . . Kills | -11 -10 -10 ------- Run | Yrd Mat Sub Combat Hostiles Destroyed 20 | . 18 2 Guns 12 | . 11 1 Cannons 3 | . 2 1 AOE 5 | . 5 . Classes Destroyed 8 | 2 5 1 Worker 1 | . 1 . Tunneler 4 | 3 1 . Hauler 2 | . 2 . Recycler 2 | 1 1 . Watcher 2 | . 2 . Swarmer 7 | . 7 . Grunt 12 | . 11 1 Sentry 1 | . . 1 Best Kill Streak 5 | 4 5 1 Combat Bots Only 3 | . 3 1 Max Kills in Single Turn 3 | 1 3 1 Gunslinging . | . . . Exploded 2 | . 2 . Melee . | . . . Uniques/NPCs Destroyed . | . . . Combat | -11 -10 -10 -------- Run | Yrd Mat Sub Hostile Shots Fired 124 | . 91 33 Missed 33 | . 27 6 Hits 91 | . 64 27 Projectile 91 | . 64 27 Critical Strikes 1 | . . 1 Damage Taken 1349 | 36 784 529 Core 250 | . 211 39 Absorbed by Shields . | . . . Regen/Repaired (Parts) 18 | . 18 . Core Remaining (%) 100 | 100 . . Volleys Fired 85 | 7 61 17 Largest 2 | 2 2 2 Hottest 85 | 80 80 85 Shots Fired 159 | 14 111 34 Gun 136 | 14 105 17 Cannon 23 | . 6 17 Launcher . | . . . Special . | . . . Kinetic 54 | . 24 30 Thermal 4 | . . 4 Explosive . | . . . Electromagnetic 101 | 14 87 . Robot Hit Streak 8 | 2 8 5 Robot Miss Streak 5 | 2 3 5 Penetration Max . | . . . Secondary Targets . | . . . Shots Hit Robots 95 | 7 68 20 Core Hits 41 | 4 32 5 Critical Kills . | . . . Critical Parts Destroyed . | . . . Critical Strikes 2 | . 2 . Blast 1 | . 1 . Corrupt 1 | . 1 . Melee Attacks 8 | . . 8 Impact 8 | . . 8 Slashing . | . . . Piercing . | . . . Sneak Attacks . | . . . Combat Hostiles . | . . . Follow-up Attacks . | . . . Damage Inflicted 1831 | 131 1393 307 Guns 1198 | 94 954 150 Cannons 232 | . 75 157 Explosions 401 | 37 364 . Melee . | . . . Ramming . | . . . Kinetic 512 | . 256 256 Thermal 452 | 37 364 51 Explosive . | . . . Electromagnetic 867 | 94 773 . Impact . | . . . Slashing . | . . . Piercing . | . . . Highest Corruption 2 | . 2 2 Average Corruption 2 | . 2 2 Corruption Purged . | . . . Corruption Blocked . | . . . Effects 20 | . 10 10 Message Errors 4 | . 2 2 Matter Fused 4 | . 1 3 Heat Flow Errors 3 | . 2 1 Energy Discharges 2 | . 2 . Data Loss (minor) 4 | . 2 2 Misfires 2 | . 1 1 Weapon Failures 1 | . . 1 Overload Shots . | . . . Overflow Damage 36 | . 36 . Projectiles 2 | . 2 . Explosions 34 | . 34 . Melee . | . . . Knockbacks . | . . . Impact . | . . . Kinetic . | . . . Secondary . | . . . Self-Inflicted Damage 142 | 36 106 . Shots 5 | 1 4 . Rammed . | . . . Targets Rammed . | . . . Kicked . | . . . Crushed . | . . . Highest Temperature 355 | 48 355 65 Average Temperature 76 | 21 85 21 Received Heat Transfer 453 | . 258 195 Effects 3 | . 3 . Energy Bleed 1 | . 1 . Interference 1 | . 1 . Short Circuit 1 | . 1 . Siege Activations . | . . . Martial Activations . | . . . Shielding Activations . | . . . Robots Disrupted . | . . . Combat Hostiles . | . . . Robots Corrupted . | . . . Combat Hostiles . | . . . Parts Fried 4 | . 4 . Impact Corruptions . | . . . Robots Melted . | . . . Combat Hostiles . | . . . Parts Melted . | . . . Heat Transferred 761 | 50 600 111 Parts Sabotaged . | . . . Parts Stolen . | . . . Parts Stripped . | . . . Power Chain Reactions 8 | 1 7 . Alert | -11 -10 -10 ------- Run | Yrd Mat Sub Maximum Alert Level 1 | . 1 . Low Security (%) 89 | 100 88 . Level 1 10 | . 11 . Level 2 . | . . . Level 3 . | . . . Level 4 . | . . . Level 5 . | . . . High Security . | . . . Max Security . | . . . Peak Influence 242 | 10 242 . Initial . | . . . Average 88 | 2 96 . Influence Increases 767 | 20 697 50 Destroy 0b10 Robot/C 400 | . 360 40 Destroy 0b10 Robot/NC 55 | 20 35 . Destroy Leader 88 | . 78 10 Successful Hack 23 | . 23 . Select Force Hacks 60 | . 60 . Disable Machine 105 | . 105 . Destroy Structure 21 | . 21 . Lose Combat Pursuer 15 | . 15 . Influence Decreases 767 | 20 479 268 Entered New Map 106 | . . 106 Time Decay 631 | 20 449 162 Lost Part 30 | . 30 . Squads Dispatched 4 | . 4 . Investigation 2 | . 2 . Extermination . | . . . Reinforcement 2 | . 2 . Assault . | . . . Garrison . | . . . Intercept . | . . . Searches Triggered . | . . . Construction Impeded . | . . . Haulers Reinforced . | . . . Active Scanning Responses . | . . . Cargo Convoy Interrupts . | . . . Stealth | -11 -10 -10 --------- Run | Yrd Mat Sub Distress Signals 1 | . 1 . Communications Jammed . | . . . Distress Signals . | . . . Times Spotted 29 | . 23 6 Peak Tracking Total 5 | . 5 2 Tactical Retreats 1 | . 1 . Traps | -11 -10 -10 ------- Run | Yrd Mat Sub Traps Triggered 3 | . 2 1 Indirectly . | . . . Trap Hack Attempts . | . . . Triggered . | . . . Disarmed . | . . . Reprogrammed . | . . . Reused . | . . . Traps Extracted . | . . . Installed . | . . . Triggered . | . . . Machines | -11 -10 -10 ---------- Run | Yrd Mat Sub Machines Disabled 7 | . 7 . Max in Single Turn 2 | . 2 . Machines Repaired . | . . . Machines Dismantled . | . . . Machines Sabotaged . | . . . Overloaded Fab Kills . | . . . Hacking | -11 -10 -10 --------- Run | Yrd Mat Sub Machines Accessed 7 | . 7 . Terminals 4 | . 4 . Fabricators . | . . . Repair Stations 1 | . 1 . Recycling Units 2 | . 2 . Scanalyzers . | . . . Garrison Access . | . . . Total Hacks 18 | . 18 . Successful 10 | . 10 . Failed 7 | . 7 . Catastrophic . | . . . Database Lockouts 1 | . 1 . Manual 13 | . 13 . Terminals 13 | . 13 . Fabricators . | . . . Repair Stations 3 | . 3 . Recycling Units 2 | . 2 . Scanalyzers . | . . . Garrison Access . | . . . Terminal Hacks 6 | . 6 . Robot Analysis 4 | . 4 . Prototype ID Bank 2 | . 2 . Fabricator Hacks . | . . . Repair Station Hacks 2 | . 2 . Scan Component 1 | . 1 . Repair 1 | . 1 . Recycling Unit Hacks . | . . . Scanalyzer . | . . . Garrison Access Hacks . | . . . Unauthorized Hacks 2 | . 2 . Terminals . | . . . Fabricators . | . . . Repair Stations . | . . . Recycling Units 2 | . 2 . Tunnel 2 | . 2 . Scanalyzers . | . . . Garrison Access . | . . . Data Cores Recovered . | . . . Used . | . . . Hacking Detections 5 | . 5 . Full Trace Events 1 | . 1 . Feedback Events . | . . . Feedback Blocked . | . . . Robot Schematics Acquired . | . . . Robots Built . | . . . Authchips . | . . . Time . | . . . Total Robot Build Rating . | . . . Part Schematics Acquired . | . . . Parts Built . | . . . Authchips . | . . . Time . | . . . Total Part Build Rating . | . . . Part Studies Acquired . | . . . Parts Repaired 1 | . 1 . Time 26 | . 26 . Parts Recycled . | . . . Recycled Matter . | . . . Retrieved Matter . | . . . Retrieved Components . | . . . Parts Scanalyzed . | . . . Part Schematics Acquired . | . . . Parts Damaged . | . . . Bothacking | -11 -10 -10 ------------ Run | Yrd Mat Sub Used RIF Installer . | . . . Robots Hacked . | . . . Non-combat . | . . . Combat . | . . . Robot Hacks Applied . | . . . Relay Couplers Released . | . . . Fabnet Peak Effective % . | . . . Robots Rewired . | . . . Allies Hacked . | . . . Hacks Repelled . | . . . Allies | -11 -10 -10 -------- Run | Yrd Mat Sub Total Allies . | . . . Largest Group . | . . . Highest-Rated Group . | . . . Highest-Rated Ally . | . . . Total Orders . | . . . Ally Attacks . | . . . Total Damage . | . . . Kills . | . . . Allies Corrupted . | . . . Allies Melted . | . . . Intel | -11 -10 -10 ------- Run | Yrd Mat Sub Active Infowar (turns) 2041 | 53 1232 756 Seismic 2041 | 53 1232 756 Robot Analysis Total 4 | . 4 . Derelict Logs Recovered . | . . . Drone Launches . | . . . Drone Recoveries . | . . . Exploration | -11 -10 -10 ------------- Run | Yrd Mat Sub Turns Passed 2265 | 117 1340 808 Spaces Moved 1302 | 58 698 546 Core 8 | 8 . . Treads 715 | 50 665 . Legs . | . . . Wheels 579 | . 33 546 Hover . | . . . Flight . | . . . Fastest Speed 50 | 50 125 95 Average Speed 141 | 145 161 116 Slowest Speed 240 | 160 240 125 Overloaded Moves . | . . . Propulsion Burnouts . | . . . Robots Hopped 4 | . . 4 Potential Cave-ins . | . . . Cave-ins Triggered . | . . . Exploration Rate (%) 42 | 4 91 32 Regions Visited 2 Branch Regions 1 Pre-discovered Areas 2 | . 2 . Known Exits Taken . | . . . Unknown Exits Taken 2 | 1 1 . Scrap Searched 1 | . . 1 Spaces Dug . | . . . Terrain Destroyed 19 | 3 16 . Melee . | . . . Projectile . | . . . AOE 19 | 3 16 . Terrain Rammed . | . . . Walls Destroyed . | . . . Machines Disabled . | . . . Actions | -11 -10 -10 --------- Run | Yrd Mat Sub Total 1538 | 73 804 661 Wait 96 | . 16 80 Move 1292 | 57 697 538 Hop 4 | . . 4 Pick Up 19 | 2 17 . Fast Attach 12 | 7 2 3 Attach 3 | . 2 1 Detach 1 | . . 1 Swap 12 | . 4 8 Drop 6 | . 5 1 Fire 85 | 7 61 17 Melee 8 | . . 8 Ram . | . . . Kick . | . . . Crush . | . . . Escape Stasis . | . . . Rewire . | . . . Trap . | . . . Miscellaneous . | . . . Route ------- -11/Scrapyard -10/Materials (discovered 5 exits: [*Mat x3] / [*Min] / [*Sub]) -10/Subcaves History --------- Turn | Location | Event 19 | -11/Scrapyard | Discovered new exit (range 16) 118 | -11/Scrapyard | Entered Materials 309 | -10/Materials | Build established: Mutant 401 | -10/Materials | Repaired Seismic Detector 420 | -10/Materials | Discovered new exit (range 16) 564 | -10/Materials | Discovered new exit (range 13) 721 | -10/Materials | Central database locked down 977 | -10/Materials | Core integrity fell below 50% 1129 | -10/Materials | Discovered new exit (range 16) 1373 | -10/Materials | Discovered new exit (range 10) 1413 | -10/Materials | Discovered new exit (range 12) 1441 | -10/Materials | Core integrity fell below 20% 1458 | -10/Materials | Entered Subcaves 1459 | -10/Subcaves | Approached by a straggling Scientist 1696 | -10/Subcaves | Shifting Twisted Machinery released Riot Gun 2131 | -10/Subcaves | Shifting Twisted Machinery released Mak. System Restoration Module 2266 | -10/Subcaves | Destroyed by MD-UZM(R) with Subdweller Laser Last Messages --------------- 02086_ System corrupted: Battle Rifle misfires. 02086_ Destroyed Lgt. Ion Engine. 02112_ #3GN5SDUVBUEWU KVVT,KX:GJQ5#E7H|<7 SD-UT2(c): "I think it's somewhere east of here" 02125_ Triggered Shrapnel Trap. 02125_ An expanding cloud of shrapnel blasts out in all directions. 02125_ Imp. Ion Engine destroyed. Mak. System Restoration Module falls loose from the Twisted Machinery. 02136_ SD-UT2(c) triggered Piercing Trap. 02136_ Spikes shoot up from the floor. 02136_ SD-UT2(c) suffers critical hit (Impale). 02139_ Acquired Mak. System Restoration Module. 02140_ Discarded Mak. System Restoration Module. 02140_ Acquired Seismic Detector. SD-UT2(c): "I think it's somewhere east of here" 02209_ Dropped Wheel. 02217_ Acquired Wheel. SD-UT2(c): "I think it's somewhere east of here" 02225_ System corrupted: Matter fused (-10). 02259_ System corrupted: Battle Rifle jammed. Map ----- +----------------------------------------------------+ | # # # #?????????# ## #????????????????? | | # #??????????# ##????????????????? | | ##### # ##?????????# ###?????????????????? | | #???### #?????????## #???????????????????? | | ?????# ###????????### ###?????????????????? | | ?????## # ###????????# ##????????????????? | | ????### ##???????# ## #????????????????? | | ????# #???????# ######????????????????? | | ????# #???????# #????????????????????? | | ???## ^ ########## #????????????????????? | | ???# ## # ### #????????????????????? | | ???# ^ ## #????????????????????? | | ???# ^ ##???????????????????? | | ???## "" ## # ##??????????????????? | | ????## """######## #??????????????????? | | ?????## # ##?????## ## ##?????????????????? | | ??????## ###????### ## #?????????????????? | | ???????#^ #??????# ## ##?????????????????? | | ???????# #####??# ### ##??????????????????? | | ??????## #??## ##?# ##???????????????????? | | ?????## #???# ##??## #????????????????????? | | ?????# ##???###????###????????????????????? | | ?????# ##?????????????????????????????????? | | ?????# ### #?????????????????????????????????? | | ?????# ##?# #####??#####??????????????????????? | | ????## ##?## ## #### @##?????????????????????? | | ????# #?## ## ###???????????????????? | | ????##" ##?# R #??????????????? | | ?????##" #??# R # ???????????? | | ??????##"#??## # # ????????????? | | ???????# #???##### # ??????????? | | ???????###???????# # ## ## ???????????? | | ????????????????? ## ### ##??#??? ???????????? | | ???????????????? # #?? #???????????????????? | | ??????????????? #?? #???????????????????? | | ?????????????? #?? #???????????????????? | | ????????????? ### ??# #???????????????????? | | ???????????? ##?###???##???????????????????? | | ???????????" ## #??????????????????????????????? | | ???????????? ?# #???????????????????????????????? | | ??????????????###????????????????????????????????? | | ?????????????????????????????????????????????????? | | ?????????????????????????????????????????????????? | | ?????????????????????????????????????????????????? | | ?????????????????????????????????????????????????? | | ?????????????????????????????????????????????????? | | ?????????????????????????????????????????????????? | | ?????????????????????????????????????????????????? | | ?????????????????????????????????????????????????? | | ?????????????????????????????????????????????????? | +----------------------------------------------------+ Best States ------------- Heat Dissipation 25 Energy Generation 12 Energy Capacity 265 Matter Stores 300 Matter Capacity 300 Sight Range 16 Terrain Scan Density 10 Armor Coverage 225 Evasion (%) 41 Recoil Reduction 2 Item Schematics ----------------- None Robot Schematics ------------------ None Fabricated ------------ Nothing Repaired ---------- Seismic Detector | 10% | -10/Materials Studied --------- None Alien Tech Used ----------------- None Achievements -------------- None Challenges ------------ None Game ------ Seed AdvancedMissileAmplifier Manual? 0 Play Time 00:27:53 Cumulative 66.6 hours Start 2025.12.01 @ 15:28:46 End 2025.12.01 @ 15:54:32 Sessions 1 Manual Loads 0 Difficulty Rogue Special Mode None Game No. 34 Rogue 34 Adventurer 0 Explorer 0 Win Type - Total 1 Types 1/0/0/0/0/0/0/0/0/0 Lore% 40 Gallery% 38 Achievement% 32 Wizard Run 0 Options --------- Layout 0 ASCII 0 Keyboard 1 Movement Arrows Keybinds 0 Fullscreen 2 Font 18/SmallcapsGlow Map View 76x50 Zoom Use 0% Tactical HUD 1 Map Filters NONE Filters NONE Steam 1 RUN: aea486ef-8de5-4e13-bf48-1a94c0f08756